[Event "Titled Tuesday Blitz February 22 Early 2022"]
[White "Wagner, Dinara"]
[Black "Mikhailovsky, Vladimir"]
[WhiteFideId "24157570"]
[BlackFideId "34105414"]
[WhiteElo "2216"]
[BlackElo "2371"]
[Result "0-1"]
[Round "06"]
[TimeControl "180+1"]
[Date "2022.02.22"]
[WhiteClock "0:00:35"]
[BlackClock "0:00:19"]

1. d4 {[%clk 0:02:57]}  d6 {[%clk 0:02:56]} 2. c4 {[%clk 0:02:56]}  e5 {[%clk 0:02:54]} 3. d5 {[%clk 0:02:55]}  f5 {[%clk 0:02:53]} 4. e4 {[%clk 0:02:52]}  fxe4 {[%clk 0:02:42]} 5. Nc3 {[%clk 0:02:49]}  Nf6 {[%clk 0:02:42]} 6. Bg5 {[%clk 0:02:49]}  Be7 {[%clk 0:02:42]} 7. Bxf6 {[%clk 0:02:40]}  Bxf6 {[%clk 0:02:43]} 8. Nxe4 {[%clk 0:02:40]}  O-O {[%clk 0:02:42]} 9. Bd3 {[%clk 0:02:38]}  Bf5 {[%clk 0:02:35]} 10. Qc2 {[%clk 0:02:35]}  Nd7 {[%clk 0:02:29]} 11. Nf3 {[%clk 0:02:35]}  g6 {[%clk 0:02:27]} 12. Nfd2 {[%clk 0:02:32]}  Bg7 {[%clk 0:02:24]} 13. h3 {[%clk 0:02:27]}  a5 {[%clk 0:02:19]} 14. O-O-O {[%clk 0:02:24]}  a4 {[%clk 0:02:13]} 15. Kb1 {[%clk 0:02:24]}  a3 {[%clk 0:02:13]} 16. b3 {[%clk 0:02:24]}  b6 {[%clk 0:02:00]} 17. g4 {[%clk 0:02:11]}  Bxe4 {[%clk 0:01:59]} 18. Nxe4 {[%clk 0:02:11]}  Rf4 {[%clk 0:01:58]} 19. h4 {[%clk 0:02:03]}  Nc5 {[%clk 0:01:56]} 20. h5 {[%clk 0:02:00]}  Nxe4 {[%clk 0:01:28]} 21. Bxe4 {[%clk 0:02:00]}  Qg5 {[%clk 0:01:26]} 22. f3 {[%clk 0:01:47]}  Raf8 {[%clk 0:01:26]} 23. Rh3 {[%clk 0:01:28]}  R8f6 {[%clk 0:01:18]} 24. hxg6 {[%clk 0:01:24]}  hxg6 {[%clk 0:01:18]} 25. Rdh1 {[%clk 0:01:25]}  Kf7 {[%clk 0:01:10]} 26. Rh7 {[%clk 0:01:08]}  Kf8 {[%clk 0:01:08]} 27. Re1 {[%clk 0:01:05]}  Rxf3 {[%clk 0:00:55]} 28. Bxf3 {[%clk 0:01:05]}  Rxf3 {[%clk 0:00:56]} 29. Qe2 {[%clk 0:00:44]}  Qxg4 {[%clk 0:00:41]} 30. Rh4 {[%clk 0:00:39]}  Qf5+ {[%clk 0:00:25]} 31. Qe4 {[%clk 0:00:38]}  Qf6 {[%clk 0:00:21]} 32. Rhh1 {[%clk 0:00:35]}  Rf4 {[%clk 0:00:21]} 33. Rhf1 {[%clk 0:00:35]}  Rxf1 {[%clk 0:00:19]} 0-1


[Site "https://www.chess.com"]

[Event "Titled Tuesday Blitz February 22 Early 2022"]
[White "Dounis, Alexandros"]
[Black "Butti, Enrique"]
[WhiteFideId "4213238"]
[BlackFideId "3700470"]
[WhiteElo "2195"]
[BlackElo "2080"]
[Result "1-0"]
[Round "06"]
[TimeControl "180+1"]
[Date "2022.02.22"]
[WhiteClock "0:00:07"]
[BlackClock "0:00:05"]

1. e4 {[%clk 0:03:00]}  c5 {[%clk 0:02:59]} 2. b4 {[%clk 0:03:00]}  b6 {[%clk 0:02:58]} 3. bxc5 {[%clk 0:02:59]}  bxc5 {[%clk 0:02:58]} 4. Nf3 {[%clk 0:02:59]}  Nc6 {[%clk 0:02:57]} 5. Be2 {[%clk 0:02:56]}  e6 {[%clk 0:02:56]} 6. O-O {[%clk 0:02:55]}  Nf6 {[%clk 0:02:51]} 7. e5 {[%clk 0:02:55]}  Ng4 {[%clk 0:02:50]} 8. Bb2 {[%clk 0:02:55]}  Qc7 {[%clk 0:02:49]} 9. Na3 {[%clk 0:02:54]}  Ngxe5 {[%clk 0:02:48]} 10. Nxe5 {[%clk 0:02:54]}  Nxe5 {[%clk 0:02:45]} 11. Nb5 {[%clk 0:02:54]}  Qb8 {[%clk 0:02:43]} 12. d4 {[%clk 0:02:48]}  cxd4 {[%clk 0:02:41]} 13. Qxd4 {[%clk 0:02:49]}  Nc6 {[%clk 0:02:36]} 14. Qg4 {[%clk 0:02:47]}  a6 {[%clk 0:02:33]} 15. Bxg7 {[%clk 0:02:24]}  Rg8 {[%clk 0:02:27]} 16. Bxf8 {[%clk 0:01:50]}  Rxg4 {[%clk 0:02:17]} 17. Bd6 {[%clk 0:01:49]}  Qxb5 {[%clk 0:02:09]} 18. Bxb5 {[%clk 0:01:47]}  axb5 {[%clk 0:02:08]} 19. Rfb1 {[%clk 0:01:43]}  b4 {[%clk 0:02:06]} 20. h3 {[%clk 0:01:41]}  Rc4 {[%clk 0:02:04]} 21. Rb2 {[%clk 0:01:31]}  f6 {[%clk 0:01:56]} 22. Rab1 {[%clk 0:01:29]}  e5 {[%clk 0:01:50]} 23. Bxb4 {[%clk 0:01:27]}  Nxb4 {[%clk 0:01:49]} 24. Rxb4 {[%clk 0:01:28]}  Rxb4 {[%clk 0:01:48]} 25. Rxb4 {[%clk 0:01:29]}  Rxa2 {[%clk 0:01:48]} 26. c4 {[%clk 0:01:22]}  d6 {[%clk 0:01:41]} 27. h4 {[%clk 0:01:11]}  Kd7 {[%clk 0:01:39]} 28. h5 {[%clk 0:01:10]}  Kc6 {[%clk 0:01:37]} 29. h6 {[%clk 0:01:09]}  Ra1+ {[%clk 0:01:32]} 30. Kh2 {[%clk 0:01:08]}  Rc1 {[%clk 0:01:31]} 31. f3 {[%clk 0:01:03]}  Be6 {[%clk 0:01:26]} 32. Ra4 {[%clk 0:00:54]}  Rxc4 {[%clk 0:01:24]} 33. Ra7 {[%clk 0:00:51]}  Bf5 {[%clk 0:01:21]} 34. g4 {[%clk 0:00:48]}  Bg6 {[%clk 0:01:20]} 35. Rg7 {[%clk 0:00:47]}  Kd5 {[%clk 0:01:16]} 36. Kg3 {[%clk 0:00:44]}  Ke6 {[%clk 0:01:11]} 37. Ra7 {[%clk 0:00:38]}  Rc3 {[%clk 0:01:07]} 38. Kf2 {[%clk 0:00:35]}  Rc6 {[%clk 0:01:05]} 39. Ke3 {[%clk 0:00:20]}  d5 {[%clk 0:01:01]} 40. Ra3 {[%clk 0:00:17]}  d4+ {[%clk 0:00:58]} 41. Kd2 {[%clk 0:00:17]}  Rc2+ {[%clk 0:00:55]} 42. Kd1 {[%clk 0:00:17]}  Rh2 {[%clk 0:00:52]} 43. Ra6+ {[%clk 0:00:17]}  Kd5 {[%clk 0:00:42]} 44. Rxf6 {[%clk 0:00:16]}  Rxh6 {[%clk 0:00:39]} 45. Ra6 {[%clk 0:00:16]}  Rh2 {[%clk 0:00:36]} 46. Ra5+ {[%clk 0:00:15]}  Kc4 {[%clk 0:00:35]} 47. Rxe5 {[%clk 0:00:15]}  Kd3 {[%clk 0:00:34]} 48. Ke1 {[%clk 0:00:15]}  Rh1+ {[%clk 0:00:31]} 49. Kf2 {[%clk 0:00:15]}  Kd2 {[%clk 0:00:31]} 50. f4 {[%clk 0:00:15]}  d3 {[%clk 0:00:30]} 51. f5 {[%clk 0:00:15]}  Bf7 {[%clk 0:00:24]} 52. Re7 {[%clk 0:00:16]}  Bd5 {[%clk 0:00:22]} 53. Rd7 {[%clk 0:00:16]}  Be4 {[%clk 0:00:19]} 54. f6 {[%clk 0:00:16]}  Rh2+ {[%clk 0:00:16]} 55. Kg3 {[%clk 0:00:15]}  Rg2+ {[%clk 0:00:15]} 56. Kh4 {[%clk 0:00:15]}  Ke2 {[%clk 0:00:14]} 57. f7 {[%clk 0:00:13]}  Rf2 {[%clk 0:00:13]} 58. Re7 {[%clk 0:00:11]}  Ke3 {[%clk 0:00:11]} 59. Kg3 {[%clk 0:00:09]}  d2 {[%clk 0:00:10]} 60. Rxe4+ {[%clk 0:00:09]}  Kxe4 {[%clk 0:00:09]} 61. Kxf2 {[%clk 0:00:09]}  d1=Q {[%clk 0:00:09]} 62. f8=Q {[%clk 0:00:10]}  Qxg4 {[%clk 0:00:08]} 63. Qa8+ {[%clk 0:00:09]}  Ke5 {[%clk 0:00:05]} 64. Qb8+ {[%clk 0:00:07]} 1-0


[Site "https://www.chess.com"]

[Event "Titled Tuesday Blitz February 22 Early 2022"]
[White "Dwilewicz, Katarzyna"]
[Black "Gabrielian, Artur"]
[WhiteFideId "1148486"]
[BlackFideId "4131002"]
[WhiteElo "1907"]
[BlackElo "2440"]
[Result "0-1"]
[Round "06"]
[TimeControl "180+1"]
[Date "2022.02.22"]
[WhiteClock "0:00:02"]
[BlackClock "0:01:35"]

1. e4 {[%clk 0:03:00]}  c5 {[%clk 0:02:59]} 2. Nf3 {[%clk 0:03:00]}  d6 {[%clk 0:03:00]} 3. Nc3 {[%clk 0:02:59]}  Nc6 {[%clk 0:02:59]} 4. d4 {[%clk 0:02:57]}  cxd4 {[%clk 0:03:00]} 5. Nxd4 {[%clk 0:02:58]}  Nf6 {[%clk 0:03:00]} 6. Bg5 {[%clk 0:02:57]}  e6 {[%clk 0:03:01]} 7. Qd2 {[%clk 0:02:58]}  a6 {[%clk 0:03:01]} 8. O-O-O {[%clk 0:02:58]}  Bd7 {[%clk 0:03:02]} 9. f3 {[%clk 0:02:58]}  Nxd4 {[%clk 0:03:00]} 10. Qxd4 {[%clk 0:02:58]}  h6 {[%clk 0:03:01]} 11. Be3 {[%clk 0:02:57]}  Bc6 {[%clk 0:03:01]} 12. g4 {[%clk 0:02:55]}  d5 {[%clk 0:03:02]} 13. exd5 {[%clk 0:02:28]}  Nxd5 {[%clk 0:02:57]} 14. Nxd5 {[%clk 0:02:23]}  Qxd5 {[%clk 0:02:57]} 15. Qxd5 {[%clk 0:02:11]}  Bxd5 {[%clk 0:02:57]} 16. Be2 {[%clk 0:02:11]}  Rc8 {[%clk 0:02:55]} 17. Kb1 {[%clk 0:02:08]}  Be7 {[%clk 0:02:55]} 18. b3 {[%clk 0:01:57]}  b5 {[%clk 0:02:49]} 19. Rd2 {[%clk 0:01:34]}  Bg5 {[%clk 0:02:46]} 20. Bxg5 {[%clk 0:01:27]}  hxg5 {[%clk 0:02:46]} 21. Bd1 {[%clk 0:01:22]}  Rh3 {[%clk 0:02:38]} 22. Rf2 {[%clk 0:01:14]}  Rc3 {[%clk 0:02:36]} 23. Rhf1 {[%clk 0:01:12]}  b4 {[%clk 0:02:36]} 24. Kb2 {[%clk 0:01:12]}  a5 {[%clk 0:02:35]} 25. a3 {[%clk 0:01:10]}  f6 {[%clk 0:02:35]} 26. axb4 {[%clk 0:01:10]}  axb4 {[%clk 0:02:36]} 27. Be2 {[%clk 0:01:01]}  e5 {[%clk 0:02:32]} 28. Bd3 {[%clk 0:00:57]}  Rc7 {[%clk 0:02:23]} 29. Bg6+ {[%clk 0:00:46]}  Ke7 {[%clk 0:02:23]} 30. Bd3 {[%clk 0:00:47]}  Rc8 {[%clk 0:02:20]} 31. Be4 {[%clk 0:00:18]}  Bxe4 {[%clk 0:02:17]} 32. fxe4 {[%clk 0:00:19]}  Re3 {[%clk 0:02:16]} 33. Rd2 {[%clk 0:00:15]}  Rxe4 {[%clk 0:02:14]} 34. Rfd1 {[%clk 0:00:16]}  Rc7 {[%clk 0:02:15]} 35. h3 {[%clk 0:00:15]}  Re3 {[%clk 0:02:15]} 36. Rd8 {[%clk 0:00:10]}  Rxh3 {[%clk 0:02:07]} 37. Rg8 {[%clk 0:00:10]}  Kf7 {[%clk 0:02:06]} 38. Rb8 {[%clk 0:00:10]}  Rf3 {[%clk 0:01:48]} 39. Rxb4 {[%clk 0:00:10]}  Rf4 {[%clk 0:01:48]} 40. Rxf4 {[%clk 0:00:05]}  gxf4 {[%clk 0:01:48]} 41. c4 {[%clk 0:00:06]}  e4 {[%clk 0:01:46]} 42. Kc3 {[%clk 0:00:06]}  f3 {[%clk 0:01:43]} 43. Rf1 {[%clk 0:00:02]}  Rd7 {[%clk 0:01:40]} 44. c5 {[%clk 0:00:02]}  Ke6 {[%clk 0:01:40]} 45. b4 {[%clk 0:00:02]}  Rd3+ {[%clk 0:01:39]} 46. Kc4 {[%clk 0:00:02]}  Rd2 {[%clk 0:01:38]} 47. b5 {[%clk 0:00:02]}  f2 {[%clk 0:01:37]} 48. b6 {[%clk 0:00:02]}  Kd7 {[%clk 0:01:35]} 0-1


[Site "https://www.chess.com"]

[Event "Titled Tuesday Blitz February 22 Early 2022"]
[White "Dzhaparov, Medet"]
[Black "Johnson, Ben"]
[WhiteFideId "13803689"]
[BlackFideId "2010917"]
[WhiteElo "1702"]
[BlackElo "2206"]
[Result "0-1"]
[Round "06"]
[TimeControl "180+1"]
[Date "2022.02.22"]
[WhiteClock "0:02:19"]
[BlackClock "0:01:57"]

1. e4 {[%clk 0:03:00]}  c5 {[%clk 0:02:57]} 2. Nf3 {[%clk 0:03:00]}  Nc6 {[%clk 0:02:57]} 3. d4 {[%clk 0:03:00]}  cxd4 {[%clk 0:02:58]} 4. Nxd4 {[%clk 0:03:01]}  Nf6 {[%clk 0:02:59]} 5. Nc3 {[%clk 0:03:01]}  e5 {[%clk 0:02:59]} 6. Ndb5 {[%clk 0:03:01]}  d6 {[%clk 0:03:00]} 7. Bg5 {[%clk 0:02:57]}  a6 {[%clk 0:03:00]} 8. Na3 {[%clk 0:02:57]}  b5 {[%clk 0:03:00]} 9. Nd5 {[%clk 0:02:58]}  Be7 {[%clk 0:03:00]} 10. Nxe7 {[%clk 0:02:54]}  Nxe7 {[%clk 0:02:45]} 11. Bxf6 {[%clk 0:02:46]}  gxf6 {[%clk 0:02:46]} 12. Bd3 {[%clk 0:02:44]}  d5 {[%clk 0:02:42]} 13. exd5 {[%clk 0:02:44]}  Qxd5 {[%clk 0:02:41]} 14. Rg1 {[%clk 0:02:42]}  Bb7 {[%clk 0:02:36]} 15. Qe2 {[%clk 0:02:34]}  Ng6 {[%clk 0:02:21]} 16. c3 {[%clk 0:02:28]}  Nf4 {[%clk 0:02:17]} 17. Bxb5+ {[%clk 0:02:23]}  axb5 {[%clk 0:02:14]} 18. Nxb5 {[%clk 0:02:24]}  Nxe2 {[%clk 0:01:58]} 19. Nc7+ {[%clk 0:02:19]}  Kf8 {[%clk 0:01:57]} 20. Nxd5 {[%clk 0:02:19]}  Nxg1 {[%clk 0:01:57]} 0-1


[Site "https://www.chess.com"]

[Event "Titled Tuesday Blitz February 22 Early 2022"]
[White "Dziththauly, Ramadhan"]
[Black "Farmani Anosheh, Armin"]
[WhiteFideId "7105525"]
[BlackFideId "24613240"]
[WhiteElo "2575"]
[BlackElo "2289"]
[Result "1-0"]
[Round "06"]
[TimeControl "180+1"]
[Date "2022.02.22"]
[WhiteClock "0:00:45"]
[BlackClock "0:00:17"]

1. d4 {[%clk 0:03:00]}  Nf6 {[%clk 0:02:59]} 2. c4 {[%clk 0:03:00]}  e6 {[%clk 0:02:59]} 3. Nc3 {[%clk 0:03:00]}  Bb4 {[%clk 0:02:59]} 4. Qc2 {[%clk 0:03:01]}  O-O {[%clk 0:02:59]} 5. e4 {[%clk 0:03:01]}  d5 {[%clk 0:02:59]} 6. e5 {[%clk 0:03:02]}  Ne4 {[%clk 0:02:57]} 7. Bd3 {[%clk 0:03:02]}  c5 {[%clk 0:02:56]} 8. Ne2 {[%clk 0:03:01]}  cxd4 {[%clk 0:02:55]} 9. Nxd4 {[%clk 0:03:02]}  Nd7 {[%clk 0:02:55]} 10. Bf4 {[%clk 0:03:00]}  Ndc5 {[%clk 0:02:54]} 11. O-O {[%clk 0:02:49]}  Bxc3 {[%clk 0:02:42]} 12. bxc3 {[%clk 0:02:48]}  Qa5 {[%clk 0:02:41]} 13. cxd5 {[%clk 0:02:39]}  exd5 {[%clk 0:02:41]} 14. Nb3 {[%clk 0:02:39]}  Qa4 {[%clk 0:02:32]} 15. Nxc5 {[%clk 0:02:04]}  Qxc2 {[%clk 0:02:33]} 16. Bxc2 {[%clk 0:02:04]}  Nxc5 {[%clk 0:02:33]} 17. Be3 {[%clk 0:02:03]}  b6 {[%clk 0:02:28]} 18. Rfd1 {[%clk 0:02:00]}  Rd8 {[%clk 0:02:19]} 19. Rab1 {[%clk 0:01:58]}  Ba6 {[%clk 0:02:11]} 20. f4 {[%clk 0:01:54]}  Bc4 {[%clk 0:02:10]} 21. a4 {[%clk 0:01:50]}  Ne4 {[%clk 0:01:52]} 22. Bd4 {[%clk 0:01:40]}  Rac8 {[%clk 0:01:20]} 23. a5 {[%clk 0:01:27]}  bxa5 {[%clk 0:01:13]} 24. Ra1 {[%clk 0:01:28]}  a6 {[%clk 0:01:06]} 25. Rxa5 {[%clk 0:01:26]}  Bb5 {[%clk 0:01:07]} 26. Bxe4 {[%clk 0:01:22]}  dxe4 {[%clk 0:01:06]} 27. Re1 {[%clk 0:01:22]}  Bd3 {[%clk 0:01:04]} 28. Kf2 {[%clk 0:01:18]}  g6 {[%clk 0:01:04]} 29. g4 {[%clk 0:01:18]}  Rb8 {[%clk 0:00:59]} 30. Ra2 {[%clk 0:01:16]}  Rb3 {[%clk 0:00:54]} 31. f5 {[%clk 0:01:15]}  Rdb8 {[%clk 0:00:51]} 32. f6 {[%clk 0:00:55]}  g5 {[%clk 0:00:40]} 33. Kg3 {[%clk 0:00:52]}  h6 {[%clk 0:00:39]} 34. h4 {[%clk 0:00:51]}  Rb2 {[%clk 0:00:38]} 35. Rxb2 {[%clk 0:00:51]}  Rxb2 {[%clk 0:00:39]} 36. hxg5 {[%clk 0:00:51]}  hxg5 {[%clk 0:00:40]} 37. Rh1 {[%clk 0:00:49]}  Re2 {[%clk 0:00:35]} 38. Rh5 {[%clk 0:00:49]}  Re1 {[%clk 0:00:24]} 39. Rxg5+ {[%clk 0:00:48]}  Kh8 {[%clk 0:00:20]} 40. e6 {[%clk 0:00:47]}  Bc4 {[%clk 0:00:18]} 41. e7 {[%clk 0:00:45]}  Bb5 {[%clk 0:00:17]} 42. Rxb5 {[%clk 0:00:45]} 1-0


[Site "https://www.chess.com"]

[Event "Titled Tuesday Blitz February 22 Early 2022"]
[White "Elissalt Cardenas, Hector"]
[Black "Stefanov, Plamen"]
[WhiteFideId "3500632"]
[BlackFideId "2900980"]
[WhiteElo "2159"]
[BlackElo "2137"]
[Result "1-0"]
[Round "06"]
[TimeControl "180+1"]
[Date "2022.02.22"]
[WhiteClock "0:00:34"]
[BlackClock "0:00:01"]

1. d4 {[%clk 0:03:00]}  Nf6 {[%clk 0:02:59]} 2. c4 {[%clk 0:03:00]}  c5 {[%clk 0:02:58]} 3. d5 {[%clk 0:03:00]}  b5 {[%clk 0:02:58]} 4. cxb5 {[%clk 0:03:00]}  a6 {[%clk 0:02:59]} 5. e3 {[%clk 0:02:55]}  g6 {[%clk 0:02:57]} 6. Nc3 {[%clk 0:02:53]}  Bg7 {[%clk 0:02:57]} 7. a4 {[%clk 0:02:50]}  axb5 {[%clk 0:02:55]} 8. Bxb5 {[%clk 0:02:49]}  O-O {[%clk 0:02:54]} 9. Nf3 {[%clk 0:02:43]}  Ba6 {[%clk 0:02:43]} 10. O-O {[%clk 0:02:33]}  Bxb5 {[%clk 0:02:41]} 11. Nxb5 {[%clk 0:02:30]}  Ne4 {[%clk 0:02:39]} 12. Ra2 {[%clk 0:02:17]}  d6 {[%clk 0:02:30]} 13. b3 {[%clk 0:02:16]}  Na6 {[%clk 0:02:19]} 14. Bd2 {[%clk 0:02:13]}  Nb4 {[%clk 0:02:16]} 15. Bxb4 {[%clk 0:02:10]}  cxb4 {[%clk 0:02:16]} 16. Nfd4 {[%clk 0:02:07]}  Qb6 {[%clk 0:02:07]} 17. Qd3 {[%clk 0:02:03]}  f5 {[%clk 0:02:03]} 18. Ne6 {[%clk 0:01:59]}  Rfc8 {[%clk 0:01:59]} 19. Nxg7 {[%clk 0:01:54]}  Kxg7 {[%clk 0:01:59]} 20. Rc2 {[%clk 0:01:55]}  Rxc2 {[%clk 0:01:45]} 21. Qxc2 {[%clk 0:01:54]}  Qc5 {[%clk 0:01:42]} 22. Qb2+ {[%clk 0:01:53]}  Nf6 {[%clk 0:01:41]} 23. Nd4 {[%clk 0:01:34]}  Qxd5 {[%clk 0:01:40]} 24. Rc1 {[%clk 0:01:33]}  e5 {[%clk 0:01:32]} 25. Nf3 {[%clk 0:01:24]}  Kh6 {[%clk 0:01:26]} 26. h3 {[%clk 0:01:21]}  Ne4 {[%clk 0:01:23]} 27. Rc7 {[%clk 0:01:15]}  Qd1+ {[%clk 0:01:07]} 28. Kh2 {[%clk 0:01:15]}  Nc3 {[%clk 0:01:02]} 29. Rd7 {[%clk 0:00:58]}  Rc8 {[%clk 0:00:48]} 30. Qd2 {[%clk 0:00:54]}  Qxb3 {[%clk 0:00:39]} 31. Qxd6 {[%clk 0:00:51]}  Ne4 {[%clk 0:00:18]} 32. Qxe5 {[%clk 0:00:48]}  Qc3 {[%clk 0:00:12]} 33. Qf4+ {[%clk 0:00:41]}  g5 {[%clk 0:00:12]} 34. Qxf5 {[%clk 0:00:41]}  Qf6 {[%clk 0:00:10]} 35. Qxe4 {[%clk 0:00:40]}  b3 {[%clk 0:00:08]} 36. Ne5 {[%clk 0:00:36]}  b2 {[%clk 0:00:05]} 37. Ng4+ {[%clk 0:00:35]}  Kh5 {[%clk 0:00:02]} 38. Qxh7+ {[%clk 0:00:35]}  Qh6 {[%clk 0:00:01]} 39. Qxh6# {[%clk 0:00:34]} 1-0


[Site "https://www.chess.com"]

[Event "Titled Tuesday Blitz February 22 Early 2022"]
[White "Eynullayev, Altay"]
[Black "Krsnik Cohar, Ivan Vihor"]
[WhiteFideId "13413562"]
[BlackFideId "14520044"]
[WhiteElo "2079"]
[BlackElo "2414"]
[Result "1-0"]
[Round "06"]
[TimeControl "180+1"]
[Date "2022.02.22"]
[WhiteClock "0:02:06"]
[BlackClock "0:02:02"]

1. e4 {[%clk 0:03:00]}  d5 {[%clk 0:02:57]} 2. exd5 {[%clk 0:03:00]}  Qxd5 {[%clk 0:02:58]} 3. Nc3 {[%clk 0:03:01]}  Qe5+ {[%clk 0:02:58]} 4. Be2 {[%clk 0:03:00]}  c6 {[%clk 0:02:55]} 5. Nf3 {[%clk 0:02:58]}  Qc7 {[%clk 0:02:56]} 6. d4 {[%clk 0:02:56]}  Bf5 {[%clk 0:02:54]} 7. O-O {[%clk 0:02:56]}  e6 {[%clk 0:02:53]} 8. Ne5 {[%clk 0:02:56]}  Nd7 {[%clk 0:02:52]} 9. Nc4 {[%clk 0:02:53]}  Ngf6 {[%clk 0:02:51]} 10. g3 {[%clk 0:02:51]}  Nd5 {[%clk 0:02:50]} 11. Nxd5 {[%clk 0:02:44]}  cxd5 {[%clk 0:02:51]} 12. Bf4 {[%clk 0:02:44]}  Qc6 {[%clk 0:02:51]} 13. Ne3 {[%clk 0:02:45]}  Bh3 {[%clk 0:02:49]} 14. Re1 {[%clk 0:02:41]}  Be7 {[%clk 0:02:43]} 15. c4 {[%clk 0:02:39]}  g5 {[%clk 0:02:41]} 16. cxd5 {[%clk 0:02:39]}  exd5 {[%clk 0:02:41]} 17. Rc1 {[%clk 0:02:33]}  Qe6 {[%clk 0:02:39]} 18. Bg4 {[%clk 0:02:30]}  gxf4 {[%clk 0:02:24]} 19. Bxe6 {[%clk 0:02:24]}  Bxe6 {[%clk 0:02:25]} 20. Nxd5 {[%clk 0:02:12]}  Bxd5 {[%clk 0:02:25]} 21. Qh5 {[%clk 0:02:13]}  Nf6 {[%clk 0:02:07]} 22. Qe5 {[%clk 0:02:12]}  Be6 {[%clk 0:02:07]} 23. d5 {[%clk 0:02:10]}  fxg3 {[%clk 0:02:02]} 24. hxg3 {[%clk 0:02:06]} 1-0


[Site "https://www.chess.com"]

[Event "Titled Tuesday Blitz February 22 Early 2022"]
[White "FGHSMN"]
[Black "Kollars, Dmitrij"]
[BlackFideId "12909572"]
[WhiteElo "2809"]
[BlackElo "2584"]
[Result "0-1"]
[Round "06"]
[TimeControl "180+1"]
[Date "2022.02.22"]
[WhiteClock "0:00:05"]
[BlackClock "0:00:15"]

1. d4 {[%clk 0:02:59]}  Nf6 {[%clk 0:02:59]} 2. Nf3 {[%clk 0:02:59]}  d5 {[%clk 0:02:58]} 3. c3 {[%clk 0:02:58]}  e6 {[%clk 0:02:55]} 4. Bf4 {[%clk 0:02:59]}  Bd6 {[%clk 0:02:55]} 5. e3 {[%clk 0:02:58]}  c5 {[%clk 0:02:55]} 6. Bg3 {[%clk 0:02:57]}  O-O {[%clk 0:02:55]} 7. Nbd2 {[%clk 0:02:56]}  Qc7 {[%clk 0:02:55]} 8. Bxd6 {[%clk 0:02:55]}  Qxd6 {[%clk 0:02:54]} 9. Ne5 {[%clk 0:02:56]}  Nfd7 {[%clk 0:02:52]} 10. f4 {[%clk 0:02:51]}  f6 {[%clk 0:02:52]} 11. Nxd7 {[%clk 0:02:49]}  Nxd7 {[%clk 0:02:53]} 12. Bd3 {[%clk 0:02:45]}  b6 {[%clk 0:02:52]} 13. O-O {[%clk 0:02:43]}  Bb7 {[%clk 0:02:53]} 14. Qh5 {[%clk 0:02:27]}  f5 {[%clk 0:02:39]} 15. Qe2 {[%clk 0:02:18]}  Bc6 {[%clk 0:02:22]} 16. Nf3 {[%clk 0:02:06]}  Rab8 {[%clk 0:02:18]} 17. Ne5 {[%clk 0:01:56]}  Nxe5 {[%clk 0:02:18]} 18. fxe5 {[%clk 0:01:57]}  Qe7 {[%clk 0:02:17]} 19. Rf4 {[%clk 0:01:55]}  b5 {[%clk 0:02:14]} 20. Raf1 {[%clk 0:01:23]}  b4 {[%clk 0:02:04]} 21. c4 {[%clk 0:01:09]}  Rbd8 {[%clk 0:01:47]} 22. Qh5 {[%clk 0:00:43]}  g6 {[%clk 0:01:41]} 23. Qh6 {[%clk 0:00:37]}  cxd4 {[%clk 0:01:20]} 24. exd4 {[%clk 0:00:37]}  dxc4 {[%clk 0:01:20]} 25. Bxc4 {[%clk 0:00:38]}  Bd5 {[%clk 0:01:21]} 26. Bxd5 {[%clk 0:00:21]}  Rxd5 {[%clk 0:01:22]} 27. h4 {[%clk 0:00:18]}  Rc8 {[%clk 0:01:14]} 28. h5 {[%clk 0:00:17]}  Qg7 {[%clk 0:01:14]} 29. Qg5 {[%clk 0:00:17]}  h6 {[%clk 0:01:13]} 30. Qxg6 {[%clk 0:00:14]}  Qxg6 {[%clk 0:01:13]} 31. hxg6 {[%clk 0:00:15]}  Kg7 {[%clk 0:01:14]} 32. g4 {[%clk 0:00:10]}  Kxg6 {[%clk 0:00:57]} 33. gxf5+ {[%clk 0:00:10]}  exf5 {[%clk 0:00:58]} 34. Rxf5 {[%clk 0:00:11]}  Rxd4 {[%clk 0:00:54]} 35. Rf6+ {[%clk 0:00:11]}  Kh7 {[%clk 0:00:54]} 36. Rf7+ {[%clk 0:00:11]}  Kh8 {[%clk 0:00:55]} 37. e6 {[%clk 0:00:11]}  Rg4+ {[%clk 0:00:30]} 38. Kf2 {[%clk 0:00:07]}  Re8 {[%clk 0:00:31]} 39. Rxa7 {[%clk 0:00:04]}  Rxe6 {[%clk 0:00:26]} 40. Rc1 {[%clk 0:00:04]}  Rf6+ {[%clk 0:00:19]} 41. Ke3 {[%clk 0:00:04]}  Rf8 {[%clk 0:00:19]} 42. Rcc7 {[%clk 0:00:03]}  Kg8 {[%clk 0:00:18]} 43. Rab7 {[%clk 0:00:03]}  h5 {[%clk 0:00:17]} 44. a3 {[%clk 0:00:03]}  bxa3 {[%clk 0:00:17]} 45. bxa3 {[%clk 0:00:04]}  h4 {[%clk 0:00:18]} 46. a4 {[%clk 0:00:02]}  h3 {[%clk 0:00:18]} 47. Rh7 {[%clk 0:00:03]}  Rg3+ {[%clk 0:00:14]} 48. Kd4 {[%clk 0:00:03]}  Re8 {[%clk 0:00:13]} 49. a5 {[%clk 0:00:03]}  Ra8 {[%clk 0:00:13]} 50. Rh5 {[%clk 0:00:01]}  Rg4+ {[%clk 0:00:12]} 51. Kd3 {[%clk 0:00:01]}  Ra4 {[%clk 0:00:11]} 52. Ke2 {[%clk 0:00:01]}  Ra2+ {[%clk 0:00:11]} 53. Kf3 {[%clk 0:00:01]}  R2xa5 {[%clk 0:00:10]} 54. Kg4 {[%clk 0:00:02]}  Rxh5 {[%clk 0:00:09]} 55. Kxh5 {[%clk 0:00:03]}  Ra1 {[%clk 0:00:08]} 56. Rb2 {[%clk 0:00:03]}  Rg1 {[%clk 0:00:08]} 57. Kh4 {[%clk 0:00:03]}  Rg2 {[%clk 0:00:08]} 58. Rb3 {[%clk 0:00:03]}  h2 {[%clk 0:00:08]} 59. Rh3 {[%clk 0:00:03]}  Kf7 {[%clk 0:00:08]} 60. Kh5 {[%clk 0:00:04]}  Kf6 {[%clk 0:00:08]} 61. Rh4 {[%clk 0:00:05]}  Kf5 {[%clk 0:00:08]} 62. Kh6 {[%clk 0:00:04]}  Rg8 {[%clk 0:00:08]} 63. Kh7 {[%clk 0:00:03]}  Rg2 {[%clk 0:00:09]} 64. Kh6 {[%clk 0:00:03]}  Kf6 {[%clk 0:00:09]} 65. Kh5 {[%clk 0:00:02]}  Rg8 {[%clk 0:00:09]} 66. Rf4+ {[%clk 0:00:02]}  Ke5 {[%clk 0:00:08]} 67. Rf1 {[%clk 0:00:01]}  h1=Q+ {[%clk 0:00:09]} 68. Rxh1 {[%clk 0:00:01]}  Rh8+ {[%clk 0:00:10]} 69. Kg5 {[%clk 0:00:01]}  Rxh1 {[%clk 0:00:11]} 70. Kg6 {[%clk 0:00:02]}  Rg1+ {[%clk 0:00:11]} 71. Kf7 {[%clk 0:00:03]}  Rg2 {[%clk 0:00:11]} 72. Ke7 {[%clk 0:00:04]}  Rg7+ {[%clk 0:00:12]} 73. Kd8 {[%clk 0:00:05]}  Kd6 {[%clk 0:00:12]} 74. Kc8 {[%clk 0:00:04]}  Rc7+ {[%clk 0:00:12]} 75. Kb8 {[%clk 0:00:05]}  Kc6 {[%clk 0:00:12]} 76. Ka8 {[%clk 0:00:06]}  Kb6 {[%clk 0:00:13]} 77. Kb8 {[%clk 0:00:06]}  Rc6 {[%clk 0:00:14]} 78. Ka8 {[%clk 0:00:05]}  Rc8# {[%clk 0:00:15]} 0-1


[Site "https://www.chess.com"]